Cogmind - Beta 14 @@@ ROGUE MODE // 2024.11.01 @ 15:05:57 Player: Kole Result: Destroyed by X-62 Marksman with Gauss Rifle Performance ------------- Evolutions (3) 1500 Regions Visited (7) 1400 Robots Destroyed (17) 85 Value Destroyed (677) 677 Prototype IDs (26) 520 Alien Tech Used (0) 0 Bonus (835) 835 TOTAL SCORE: 5017 Bonus ------- Follower Combat Kills 35 Entered DSFs 500 Aligned with FarCom 300 Cogmind --------- Core Integrity 0/700 Matter 56/300 Energy 61/100 System Corruption 0% Temperature Cool (0) Movement Core (50) Location -7/DSF Parts ------- > --- POWER (1) -------- (None) > --- PROPULSION (4) --- (None) > --- UTILITY (5) ------ Signal Interpreter > --- WEAPON (3) ------- (None) > --- INVENTORY (5) ---- Signal Interpreter Advanced ECM Suite Advanced ECM Suite Advanced ECM Suite Datajack Peak State ------------ > --- POWER ------------ Light Nuclear Core > --- PROPULSION ------- Aluminum Leg Carbon-fiber Leg Carbon-fiber Leg Carbon-fiber Leg > --- UTILITY ---------- Huge Storage Unit Compact Battery Signal Interpreter Seismic Detector Advanced ECM Suite > --- WEAPON ----------- Heavy Particle Cannon Guided Plasma Cannon Rocket Launcher > --- INVENTORY -------- Light Ion Engine Reinforced Ion Engine Light Treads Light Treads Large Storage Unit Signal Interpreter Advanced ECM Suite Advanced ECM Suite Advanced ECM Suite Arc Projector Arc Projector Arc Projector Datajack [Rating: 39] Favorites ----------- Power Ion Engine Engine Ion Engine Power Core Light Nuclear Core Propulsion Aluminum Leg Treads Light Treads Leg Aluminum Leg Utility Large Storage Unit Device Heat Sink Storage Large Storage Unit Processor Signal Interpreter Weapon Assault Rifle Energy Gun Small Laser Energy Cannon Heavy Particle Cannon Ballistic Gun Assault Rifle Launcher Rocket Launcher Special Melee Weapon Datajack Build | -11 -10 -10 -10 -9 -8 -7 -7 ------- Run | Yrd Mat Min Exi Min Mat Fac DSF Slots Evolved 6 | . . . . . 4 2 . Power . | . . . . . . . . Propulsion 2 | . . . . . 2 . . Utility 3 | . . . . . 2 1 . Weapon 1 | . . . . . . 1 . Parts Attached 61 | 6 6 . . 2 28 2 17 Power 7 | 1 . . . 1 4 . 1 Engine 4 | 1 . . . . 2 . 1 Core 3 | . . . . 1 2 . . Reactor . | . . . . . . . . Propulsion 15 | 2 . . . 1 8 . 4 Treads 4 | . . . . . 2 . 2 Leg 11 | 2 . . . 1 6 . 2 Wheel . | . . . . . . . . Hover . | . . . . . . . . Flight . | . . . . . . . . Utility 21 | 1 4 . . . 10 1 5 Device 13 | . 2 . . . 6 1 4 Storage 6 | 1 1 . . . 3 . 1 Processor 2 | . 1 . . . 1 . . Hackware . | . . . . . . . . Protection . | . . . . . . . . Artifact . | . . . . . . . . Weapon 18 | 2 2 . . . 6 1 7 Energy Gun 7 | 1 . . . . 2 . 4 Energy Cannon 4 | . . . . . 2 . 2 Ballistic Gun 3 | 1 1 . . . 1 . . Ballistic Cannon . | . . . . . . . . Launcher 1 | . . . . . . . 1 Special Weapon . | . . . . . . . . Impact Weapon . | . . . . . . . . Slashing Weapon . | . . . . . . . . Piercing Weapon . | . . . . . . . . Special Melee Weapon 3 | . 1 . . . 1 1 . Unidentified Prototypes 1 | . . . . . 1 . . Parts Lost 39 | . . . . 1 15 . 23 Power 6 | . . . . 1 3 . 2 Propulsion 11 | . . . . . 3 . 8 Utility 8 | . . . . . 4 . 4 Weapon 14 | . . . . . 5 . 9 Highest Loss Streak 23 | . . . . 1 12 . 23 To Critical Strikes . | . . . . . . . . Average Slot Usage (%) 91 | . 97 100 100 99 80 96 64 Engine 9 | . 14 14 14 13 1 . 1 Core 2 | . . . . . 7 7 3 Treads 1 | . . . . . 3 . 3 Leg 23 | . 28 28 28 27 17 30 14 Device 5 | . 10 . . . 8 11 10 Storage 15 | . 14 14 14 14 18 15 9 Processor 8 | . 1 14 14 14 7 7 7 Energy Gun 1 | . 3 . . . . . 2 Energy Cannon 1 | . . . . . 2 7 5 Ballistic Gun 19 | . 18 28 28 28 12 7 1 Special Melee Weapon 1 | . 5 . . . 2 7 . Peak Build Rating 39 | 6 8 8 9 11 30 32 39 Average Rating 12 | 3 6 8 8 9 18 31 22 On Entrance 13 | . 6 8 8 9 11 30 32 Naked Turns . | . . . . . . . . Heaviest Build 110 | 13 30 29 29 29 41 40 110 Greatest Support 56 | 20 20 20 20 20 56 56 56 Greatest Overweight (x) 12 | . 1 1 1 2 12 . 4 Average Overweight (x) . | . . 1 1 1 . . . Largest Inventory Capacity 25 | 8 15 15 15 15 15 15 25 Average Capacity 14 | 6 13 15 15 15 15 15 19 Most Carried 17 | 5 10 11 12 15 15 14 17 Average Carried 10 | 2 6 10 11 14 11 13 10 Final Capacity 15 | 8 15 15 15 15 15 15 5 Final Carried 15 | 2 10 11 12 15 15 13 5 Class Distribution -------------------- 83% | Mutant 11% | Skirmisher 4% | Scavenger-Mutant Dominant Class ---------------- Mutant | -10/Materials Mutant | -10/Mines Mutant | -10/Exiles Mutant | -9/Mines Mutant | -8/Materials Mutant | -7/Factory Mutant | -7/DSF Resources | -11 -10 -10 -10 -9 -8 -7 -7 ----------- Run | Yrd Mat Min Exi Min Mat Fac DSF Matter Collected 898 | 224 77 . . 148 426 . 23 Remotely . | . . . . . . . . Salvage Created 788 | . 47 . . . 587 . 154 Parts 32 | . 3 . . . 24 . 5 Haulers Intercepted . | . . . . . . . . Recyclers Shooed . | . . . . . . . . Parts Field Recycled . | . . . . . . . . Retrieved Matter . | . . . . . . . . Parts Self-Destructed . | . . . . . . . . Prevented . | . . . . . . . . Kills | -11 -10 -10 -10 -9 -8 -7 -7 ------- Run | Yrd Mat Min Exi Min Mat Fac DSF Combat Hostiles Destroyed 16 | . 3 . . . 10 . 3 Guns 10 | . 3 . . . 7 . . Cannons 6 | . . . . . 3 . 3 Classes Destroyed 6 | . 1 . . . 4 . 1 Recycler 1 | . . . . . 1 . . Swarmer 3 | . 3 . . . . . . Grunt 6 | . . . . . 6 . . Brawler 1 | . . . . . 1 . . Sentry 4 | . . . . . 3 . 1 Specialist 2 | . . . . . . . 2 Best Kill Streak 6 | . 3 . . . 6 . 3 Combat Bots Only 6 | . 3 . . . 6 . 3 Max Kills in Single Turn 1 | . 1 . . . 1 . 1 Gunslinging . | . . . . . . . . Exploded . | . . . . . . . . Melee . | . . . . . . . . Uniques/NPCs Destroyed . | . . . . . . . . Combat | -11 -10 -10 -10 -9 -8 -7 -7 -------- Run | Yrd Mat Min Exi Min Mat Fac DSF Hostile Shots Fired 376 | . 18 . . 18 125 . 215 Missed 120 | . 2 . . 4 29 . 85 Damage Taken 4256 | . 123 . . 352 1543 . 2238 Core 1110 | . 50 . . 107 241 . 712 Absorbed by Shields 82 | . . . . . . . 82 Core Remaining (%) 64 | 100 . . . 37 56 . . Volleys Fired 77 | . 7 . . 6 49 . 15 Largest 3 | . 2 . . 2 2 . 3 Hottest 185 | . 40 . . 40 120 . 185 Shots Fired 127 | . 14 . . 12 73 . 28 Gun 97 | . 14 . . 12 66 . 5 Cannon 21 | . . . . . 7 . 14 Launcher 9 | . . . . . . . 9 Special . | . . . . . . . . Kinetic 86 | . 14 . . 12 60 . . Thermal 26 | . . . . . 13 . 13 Explosive 9 | . . . . . . . 9 Electromagnetic 6 | . . . . . . . 6 Robot Hit Streak 12 | . 4 . . 9 12 . 10 Robot Miss Streak 4 | . 4 . . 2 4 . 1 Penetration Max . | . . . . . . . . Secondary Targets 5 | . 1 . . . 4 . . Max Gunslinging Chain 1 | . 1 . . . 1 . . Shots Hit Robots 96 | . 17 . . 8 51 . 20 Core Hits 34 | . 3 . . 1 23 . 7 Critical Kills . | . . . . . . . . Critical Parts Destroyed 1 | . . . . . 1 . . Critical Strikes 1 | . . . . . 1 . . Destroy 1 | . . . . . 1 . . Melee Attacks 11 | . 10 . . . 1 . . Impact . | . . . . . . . . Slashing . | . . . . . . . . Piercing . | . . . . . . . . Sneak Attacks 8 | . 8 . . . . . . Combat Hostiles . | . . . . . . . . Follow-up Attacks . | . . . . . . . . Damage Inflicted 1654 | . 114 . . 110 892 . 538 Guns 918 | . 114 . . 110 644 . 50 Cannons 532 | . . . . . 248 . 284 Explosions 204 | . . . . . . . 204 Melee . | . . . . . . . . Ramming . | . . . . . . . . Kinetic 804 | . 114 . . 110 580 . . Thermal 576 | . . . . . 312 . 264 Explosive 204 | . . . . . . . 204 Electromagnetic 70 | . . . . . . . 70 Impact . | . . . . . . . . Slashing . | . . . . . . . . Piercing . | . . . . . . . . Highest Corruption 11 | . . . . . 11 . . Average Corruption 7 | . . . . . 7 . . Corruption Purged . | . . . . . . . . Corruption Blocked . | . . . . . . . . Effects 21 | . . . . . 21 . . Message Errors 4 | . . . . . 4 . . Matter Fused 3 | . . . . . 3 . . Heat Flow Errors 3 | . . . . . 3 . . Energy Discharges 1 | . . . . . 1 . . Data Loss (minor) 3 | . . . . . 3 . . Misfires 4 | . . . . . 4 . . Alerts 3 | . . . . . 3 . . Overload Shots . | . . . . . . . . Overflow Damage 13 | . . . . . . . 13 Projectiles . | . . . . . . . . Explosions 13 | . . . . . . . 13 Melee . | . . . . . . . . Knockbacks . | . . . . . . . . Impact . | . . . . . . . . Kinetic . | . . . . . . . . Secondary . | . . . . . . . . Self-Inflicted Damage 33 | . . . . . . . 33 Shots 2 | . . . . . . . 2 Rammed . | . . . . . . . . Targets Rammed . | . . . . . . . . Kicked . | . . . . . . . . Crushed . | . . . . . . . . Highest Temperature 544 | . . . . 2 544 . 35 Average Temperature 165 | . . . . 2 181 . 19 Received Heat Transfer 867 | . . . . 54 765 . 48 Effects 2 | . . . . . 2 . . Shutdowns 1 | . . . . . 1 . . Matter Decay 1 | . . . . . 1 . . Siege Activations . | . . . . . . . . Robots Corrupted . | . . . . . . . . Combat Hostiles . | . . . . . . . . Parts Fried . | . . . . . . . . Impact Corruptions . | . . . . . . . . Robots Melted . | . . . . . . . . Combat Hostiles . | . . . . . . . . Parts Melted 1 | . . . . . 1 . . Heat Transferred 1080 | . . . . . 667 . 413 Parts Sabotaged . | . . . . . . . . Parts Stolen . | . . . . . . . . Parts Stripped . | . . . . . . . . Power Chain Reactions . | . . . . . . . . Alert | -11 -10 -10 -10 -9 -8 -7 -7 ------- Run | Yrd Mat Min Exi Min Mat Fac DSF Peak Influence 111 | . 100 39 . 24 105 5 111 Initial 39 | . . 39 . . . . 3 Average 31 | . 38 39 . . 45 . 26 Maximum Alert Level . | . . . . . . . . Low Security (%) 100 | 100 100 100 . 100 100 100 100 Level 1 . | . . . . . . . . Level 2 . | . . . . . . . . Level 3 . | . . . . . . . . Level 4 . | . . . . . . . . Level 5 . | . . . . . . . . High Security . | . . . . . . . . Max Security . | . . . . . . . . Squads Dispatched 4 | . . . . 1 1 . 2 Investigation . | . . . . . . . . Extermination . | . . . . . . . . Reinforcement 3 | . . . . . 1 . 2 Assault 1 | . . . . 1 . . . Garrison . | . . . . . . . . Intercept . | . . . . . . . . Searches Triggered . | . . . . . . . . Construction Impeded . | . . . . . . . . Haulers Reinforced . | . . . . . . . . Active Scanning Responses . | . . . . . . . . Cargo Convoy Interrupts . | . . . . . . . . Stealth | -11 -10 -10 -10 -9 -8 -7 -7 --------- Run | Yrd Mat Min Exi Min Mat Fac DSF Distress Signals 1 | . 1 . . . . . . Communications Jammed . | . . . . . . . . Distress Signals . | . . . . . . . . Times Spotted 35 | . 8 . . 4 12 . 11 Peak Tracking Total 5 | . 3 . . 4 4 . 5 Tactical Retreats 4 | . 1 . . . . . 3 Traps | -11 -10 -10 -10 -9 -8 -7 -7 ------- Run | Yrd Mat Min Exi Min Mat Fac DSF Traps Triggered 2 | . . . . . 1 . 1 Indirectly . | . . . . . . . . Trap Hack Attempts . | . . . . . . . . Triggered . | . . . . . . . . Disarmed . | . . . . . . . . Reprogrammed . | . . . . . . . . Reused . | . . . . . . . . Traps Extracted . | . . . . . . . . Installed . | . . . . . . . . Triggered . | . . . . . . . . Machines | -11 -10 -10 -10 -9 -8 -7 -7 ---------- Run | Yrd Mat Min Exi Min Mat Fac DSF Machines Disabled 1 | . . . . . 1 . . Max in Single Turn 1 | . . . . . 1 . . Machines Repaired . | . . . . . . . . Machines Dismantled . | . . . . . . . . Machines Sabotaged . | . . . . . . . . Overloaded Fab Kills . | . . . . . . . . Hacking | -11 -10 -10 -10 -9 -8 -7 -7 --------- Run | Yrd Mat Min Exi Min Mat Fac DSF Machines Accessed 5 | . 3 . 1 . . 1 . Terminals 4 | . 3 . . . . 1 . Fabricators . | . . . . . . . . Repair Stations . | . . . . . . . . Recycling Units . | . . . . . . . . Scanalyzers . | . . . . . . . . Garrison Access . | . . . . . . . . Total Hacks 11 | . 9 . 1 . . 1 . Successful 5 | . 3 . 1 . . 1 . Failed 6 | . 6 . . . . . . Catastrophic 2 | . 2 . . . . . . Database Lockouts . | . . . . . . . . Manual 4 | . 3 . 1 . . . . Terminals 10 | . 9 . . . . 1 . Fabricators . | . . . . . . . . Repair Stations . | . . . . . . . . Recycling Units . | . . . . . . . . Scanalyzers . | . . . . . . . . Garrison Access . | . . . . . . . . Terminal Hacks 5 | . 3 . 1 . . 1 . Robot Analysis 1 | . 1 . . . . . . Prototype ID Bank 1 | . 1 . . . . . . Open DSF 1 | . . . . . . 1 . Emergency Access Points 1 | . 1 . . . . . . Derelict Proto ID Bank 1 | . . . 1 . . . . Fabricator Hacks . | . . . . . . . . Repair Station Hacks . | . . . . . . . . Recycling Unit Hacks . | . . . . . . . . Scanalyzer . | . . . . . . . . Garrison Access Hacks . | . . . . . . . . Unauthorized Hacks . | . . . . . . . . Terminals . | . . . . . . . . Fabricators . | . . . . . . . . Repair Stations . | . . . . . . . . Recycling Units . | . . . . . . . . Scanalyzers . | . . . . . . . . Garrison Access . | . . . . . . . . Data Cores Recovered . | . . . . . . . . Used . | . . . . . . . . Hacking Detections 3 | . 3 . . . . . . Full Trace Events 1 | . 1 . . . . . . Feedback Events . | . . . . . . . . Feedback Blocked . | . . . . . . . . Robot Schematics Acquired . | . . . . . . . . Robots Built . | . . . . . . . . Authchips . | . . . . . . . . Time . | . . . . . . . . Total Robot Build Rating . | . . . . . . . . Part Schematics Acquired . | . . . . . . . . Parts Built . | . . . . . . . . Authchips . | . . . . . . . . Time . | . . . . . . . . Total Part Build Rating . | . . . . . . . . Parts Repaired . | . . . . . . . . Time . | . . . . . . . . Parts Recycled . | . . . . . . . . Recycled Matter . | . . . . . . . . Retrieved Matter . | . . . . . . . . Retrieved Components . | . . . . . . . . Parts Scanalyzed . | . . . . . . . . Part Schematics Acquired . | . . . . . . . . Parts Damaged . | . . . . . . . . Bothacking | -11 -10 -10 -10 -9 -8 -7 -7 ------------ Run | Yrd Mat Min Exi Min Mat Fac DSF Used RIF Installer . | . . . . . . . . Robots Hacked 5 | . 5 . . . . . . Non-combat 5 | . 5 . . . . . . Combat . | . . . . . . . . Robot Hacks Applied 7 | . 7 . . . . . . parse_system 1 | . 1 . . . . . . no_distress 5 | . 5 . . . . . . check_alert 1 | . 1 . . . . . . Relay Couplers Released . | . . . . . . . . Fabnet Peak Effective % . | . . . . . . . . Robots Rewired . | . . . . . . . . Allies Hacked . | . . . . . . . . Hacks Repelled . | . . . . . . . . Allies | -11 -10 -10 -10 -9 -8 -7 -7 -------- Run | Yrd Mat Min Exi Min Mat Fac DSF Total Allies 4 | . . . . 4 . . . Largest Group 4 | . . . . 4 . . . Highest-Rated Group 71 | . . . . 71 . . . Highest-Rated Ally 31 | . . . . 31 . . . Total Orders . | . . . . . . . . Ally Attacks 19 | . . . . 19 . . . Total Damage 205 | . . . . 205 . . . Kills 1 | . . . . 1 . . . Allies Corrupted . | . . . . . . . . Allies Melted . | . . . . . . . . Intel | -11 -10 -10 -10 -9 -8 -7 -7 ------- Run | Yrd Mat Min Exi Min Mat Fac DSF Robot Analysis Total 1 | . 1 . . . . . . Derelict Logs Recovered . | . . . . . . . . Drone Launches . | . . . . . . . . Drone Recoveries . | . . . . . . . . Exploration | -11 -10 -10 -10 -9 -8 -7 -7 ------------- Run | Yrd Mat Min Exi Min Mat Fac DSF Turns Passed 2849 | 58 603 106 623 449 819 13 178 Spaces Moved 1385 | 48 323 56 328 188 352 10 80 Core 67 | 16 . . . . 6 . 45 Treads 91 | . . . . . 85 . 6 Legs 1227 | 32 323 56 328 188 261 10 29 Wheels . | . . . . . . . . Hover . | . . . . . . . . Flight . | . . . . . . . . Fastest Speed 50 | 50 120 190 190 190 120 120 50 Average Speed 171 | 96 166 190 190 191 165 120 128 Slowest Speed 650 | 120 190 190 190 260 650 120 480 Overloaded Moves . | . . . . . . . . Propulsion Burnouts . | . . . . . . . . Robots Hopped . | . . . . . . . . Cave-ins Triggered . | . . . . . . . . Exploration Rate (%) 35 | 3 47 15 63 50 23 . 48 Regions Visited 7 Branch Regions 3 Pre-discovered Areas . | . . . . . . . . Known Exits Taken 6 | . 1 1 1 1 1 1 . Unknown Exits Taken 1 | 1 . . . . . . . Scrap Searched 1 | . . . . 1 . . . Spaces Dug . | . . . . . . . . Terrain Destroyed 41 | . . . . . . . 41 Melee . | . . . . . . . . Projectile . | . . . . . . . . AOE 41 | . . . . . . . 41 Terrain Rammed . | . . . . . . . . Walls Destroyed . | . . . . . . . . Machines Disabled . | . . . . . . . . Actions | -11 -10 -10 -10 -9 -8 -7 -7 --------- Run | Yrd Mat Min Exi Min Mat Fac DSF Total 1738 | 58 368 56 328 267 521 11 129 Wait 140 | . 12 . . 66 62 . . Move 1378 | 47 322 55 327 187 351 9 80 Hop . | . . . . . . . . Pick Up 46 | 5 9 1 1 4 22 . 4 Fast Attach 8 | 3 1 . . 1 1 . 2 Attach 47 | 3 2 . . . 26 2 14 Detach 10 | . 1 . . . 5 . 4 Swap 6 | . 3 . . 1 1 . 1 Drop 7 | . 1 . . 2 3 . 1 Fire 77 | . 7 . . 6 49 . 15 Melee 11 | . 10 . . . 1 . . Ram . | . . . . . . . . Kick . | . . . . . . . . Crush . | . . . . . . . . Escape Stasis 8 | . . . . . . . 8 Rewire . | . . . . . . . . Trap . | . . . . . . . . Miscellaneous . | . . . . . . . . Route ------- -11/Scrapyard -10/Materials (discovered 2 exits: [*Mat] / *Min) -10/Mines -10/Exiles (discovered 2 exits: *Min x2) -9/Mines -8/Materials -7/Factory -7/DSF History --------- Turn | Location | Event 15 | -11/Scrapyard | Discovered new exit (range 15) 59 | -11/Scrapyard | Entered Materials 300 | -10/Materials | Build established: Mutant 521 | -10/Materials | Discovered new exit (range 15) 559 | -10/Materials | Discovered new exit (range 16) 660 | -10/Materials | Identified exit to Mines 662 | -10/Materials | Entered Mines 731 | -10/Mines | Found a damaged Exp. Sensor Array with a note attached 735 | -10/Mines | Found Prototype Device 755 | -10/Mines | Deemed a non-threat by the Exiles lab entrance 757 | -10/Mines | Discovered new exit (range 5) 764 | -10/Mines | Identified exit to Exiles 768 | -10/Mines | Entered Exiles 816 | -10/Exiles | Discovered new exit (range 15) 848 | -10/Exiles | Identified exit to Mines 907 | -10/Exiles | Met 8R-AWN 947 | -10/Exiles | Met EX-HEX 1029 | -10/Exiles | Met EX-BIN 1072 | -10/Exiles | Aligned with FarCom system 1074 | -10/Exiles | Given EX-Vault access code 1131 | -10/Exiles | Opened EX-Vault 1143 | -10/Exiles | Found Gui. Plasma Cannon 1180 | -10/Exiles | Warned to stay clear of 0b10 Research branches 1244 | -10/Exiles | Met EX-DEC 1355 | -10/Exiles | Discovered exit to Mines (range 14) 1391 | -10/Exiles | Left Exiles lab with Gui. Plasma Cannon 1391 | -10/Exiles | Entered Mines 1407 | -9/Mines | Met a Derelict bent on vengeance 1505 | -9/Mines | Assisted by bots powering up and referring to "LRC-V3" 1685 | -9/Mines | Discovered new exit (range 15) 1713 | -9/Mines | Met a Derelict testing a Signal Generator 1719 | -9/Mines | Identified exit to Materials 1835 | -9/Mines | Core integrity fell below 50% 1840 | -9/Mines | Entered Materials 1840 | -8/Materials | Evolved 4 slots: Propulsion x2, Utility x2 1840 | -8/Materials | Identified Exp. Sensor Array 1847 | -8/Materials | Lost 4 allies 2239 | -8/Materials | System corruption reached 10% 2277 | -8/Materials | Lost 12 parts (2p3n3u4w) 2395 | -8/Materials | Discovered new exit (range 16) 2420 | -8/Materials | Identified exit to Factory 2525 | -8/Materials | Lost 3 parts (1p1u1w) 2659 | -8/Materials | Entered Factory 2659 | -7/Factory | Evolved 2 slots: Utility x1, Weapon x1 2671 | -7/Factory | Identified exit to DSF 2672 | -7/Factory | Entered DSF 2718 | -7/DSF | Additional patrols routed to DSF 2809 | -7/DSF | Core integrity fell below 50% 2845 | -7/DSF | Core integrity fell below 20% 2850 | -7/DSF | Destroyed by X-62 Marksman with Gauss Rifle Last Messages --------------- area. 02840_ Field strength at 94. 02840_ Penetrated by Slug. 02841_ Field strength at 79. 02842_ Field strength at 73. 02843_ Field strength at 67. 02844_ Hardlight Generator destroyed. 02844_ Field strength at 38. 02845_ Field strength at 32. 02846_ Penetrated by Slug. 02846_ Field strength at 18. 02847_ Field strength at 12. 02847_ Slug penetrates Wall. 02848_ Field strength at 6. 02849_ Slug penetrates Wall. 02849_ Stasis field depleted. 02849_ Knocked back. 02850_ Acquired 2 matter. 02850_ Penetrated by Slug. [Achievement: 5k Club] Map ----- +----------------------------------------------------+ | | | ???????????????????????????????????????????? | | ???????????????????????????????????????????? | | ???????????????????????????????????????????? | | ????????????????????????????????##?????????? | | ???????????????????????????????#""?????????? | | ????????????##??????##?????????#"#?????????? | | ????????? # # #####"#?###???##"####??????? | | ???????? # # "##"#####"""""#??????? | | ???????# [ #* [[["[[""""%""#??????? | | ???? [ %% %""##"????? | | ???? ! % """""????? | | ????????[[ [[[ %## ]]!!* ## ""###????? | | ????????[[ [[[ ]]]# ### ###??????? | | ?????????## # #%######## ##???????? | | ??????????##??# ! #?????# #???????? | | ??????????????# #??????# #???????? | | ??????????????# ##??????### ##???????? | | ??????????????#** ????????# h #???????? | | ??????????????#** ????????# #???????? | | ??????????????#** !????????# #???????? | | ??????????????### #?########## ###??????? | | ???????????????## ??#]]]#!!!## #??????? | | ??????????#!!!## ##]]]#!!!## #??????? | | ?????????? a % H ^ x [[#??????? | | ?????????? h @ x [[#??????? | | ?????????? ^ [[#??????? | | ??????????#!!!##a a##!!!# % ## !#??????? | | ???????????????## ???#!!!# ## !!#??????? | | ??????????????????????###############??????? | | ???????????????????????????????????????????? | | ???????????????????????????????????????????? | | ???????????????????????????????????????????? | | ???????????????????????????????????????????? | | ???????????????????????????????????????????? | | ???????????????????????????????????????????? | | ???????????????????????????????????????????? | | ???????????????????????????????????????????? | | ???????????????????????????????????????????? | | ???????????????????????????????????????????? | | ???????????????????????????????????????????? | | ???????????????????????????????????????????? | | ???????????????????????????????????????????? | | ???????????????????????????????????????????? | | ???????????????????????????????????????????? | | ???????????????????????????????????????????? | | ???????????????????????????????????????????? | | ???????????????????????????????????????????? | | ???????????????????????????????????????????? | | ???????????????????????????????????????????? | +----------------------------------------------------+ Best States ------------- Heat Dissipation 51 Energy Generation 14 Energy Capacity 465 Matter Stores 372 Matter Capacity 450 Sight Range 16 Terrain Scan Range 16 Terrain Scan Density 10 Evasion (%) 55 Recoil Reduction 2 Item Schematics ----------------- None Robot Schematics ------------------ None Fabricated ------------ Nothing Alien Tech Used ----------------- None Achievements -------------- 5k Club Made in Tau Ceti IV System Compromised Challenges ------------ None Game ------ Seed ScrapoidHoverSheargun Manual? 0 Play Time 00:47:54 Cumulative 4.2 hours Start 2024.11.01 @ 04:07:04 End 2024.11.01 @ 15:05:57 Sessions 2 Manual Loads 0 Difficulty Rogue Special Mode None Game No. 8 Rogue 8 Adventurer 0 Explorer 0 Win Type - Total 0 Types 0/0/0/0/0/0/0/0/0 Lore% 6 Gallery% 8 Achievement% 9 Wizard Run 0 Options --------- Layout 1 ASCII 0 Keyboard 0 Movement Arrows Keybinds 0 Fullscreen 2 Font 24/Smallcaps Map View 50x35 Zoom Use 0% Tactical HUD 1 Map Filters NONE Filters NONE Steam 1 RUN: a5e3aad1-fbc8-4485-81b1-506651d6011a